bitfinex/quotes_ETHUSD_20251111
["timestamp","ask_amount","ask_price","bid_price","bid_amount"]
[1762827120385,0.16152297,3589.7,3589.0,2.7862748]
[1762827120586,0.16152297,3589.7,3588.7,2.78651744]
[1762827120587,0.0031,3589.6,3588.7,2.78651744]
[1762827120922,0.0031,3589.6,3588.9,2.78631545]
[1762827121126,0.679,3589.5,3588.4,2.78675732]
[1762827121536,0.679,3589.5,3588.1,4.32571311]
[1762827121537,0.0031,3589.4,3588.2,2.78685403]
[1762827121738,0.0031,3589.4,3587.7,0.4628]
[1762827122025,0.14120148,3589.3,3588.8,2.78638771]
[1762827122228,0.72991484,3589.8,3588.4,3.19226132]
[1762827122431,1.505,3591.1,3588.3,4.13641311]
[1762827122432,0.68,3590.2,3589.3,0.4746]
[1762827122584,0.001,3590.2,3589.4,0.4628]
[1762827122785,0.001,3590.2,3590.1,2.78543773]
[1762827122989,0.001,3590.2,3589.4,0.4628]
[1762827123190,0.001,3590.2,3590.1,2.78543773]
[1762827123438,0.0072,3590.2,3589.6,2.78582084]
[1762827123640,0.0072,3590.2,3589.1,2.78620996]
[1762827123789,0.1986912,3590.2,3588.9,2.78631688]
[1762827123991,0.679,3590.1,3590.0,2.78548889]
[1762827124229,0.679,3590.1,3589.2,0.6435]
[1762827124451,0.679,3590.1,3588.8,0.868304]
[1762827124745,0.0031,3589.3,3589.1,2.78620368]
[1762827124951,0.73091484,3590.2,3589.2,0.49066136]
[1762827125133,0.001,3590.2,3590.1,2.78543773]
[1762827125423,0.001,3590.2,3590.1,2.98233773]
[1762827125647,0.001,3590.2,3590.1,3.44513773]
[1762827125963,0.001,3590.2,3590.1,3.85064173]
[1762827127428,0.001,3590.2,3590.1,5.63809015]
[1762827127629,0.001,3590.2,3590.1,5.61023578]
[1762827127952,0.361,3592.0,3590.7,0.405504]
[1762827128248,0.72991484,3592.4,3590.8,4.13641311]
[1762827128413,0.679,3592.2,3590.9,0.405504]
[1762827128749,0.72991484,3592.7,3591.0,0.405504]
[1762827128912,0.679,3592.5,3591.4,0.405504]
[1762827129113,0.17035482,3592.6,3591.5,0.405504]
[1762827129313,0.72991484,3593.2,3591.7,0.405504]
[1762827129512,0.679,3593.1,3592.5,2.78351753]
[1762827129743,0.679,3593.1,3591.4,2.7843974]
[1762827129744,4.81541311,3593.1,3591.2,0.405504]
[1762827129945,1.263812,3593.0,3591.2,0.405504]
[1762827130143,0.735014,3592.9,3591.4,0.405504]
[1762827130314,0.679,3592.8,3591.7,2.7841296]
[1762827130513,0.735014,3592.9,3591.6,0.405504]
[1762827130514,0.730914,3592.9,3591.6,0.405504]
[1762827130710,0.0041,3591.6,3590.3,0.4628]
[1762827130914,0.0041,3591.6,3591.0,2.78471914]
[1762827131112,0.0041,3591.6,3590.3,0.4628]
[1762827131113,0.0041,3591.6,3591.1,2.78465463]
[1762827131551,0.0041,3591.6,3590.3,0.4628]
[1762827131861,0.0041,3591.6,3590.4,0.4628]
[1762827132213,0.0041,3591.6,3590.1,0.1807]
[1762827132543,0.0041,3591.6,3591.2,2.78457807]
[1762827132741,0.679,3591.8,3590.7,0.405504]
[1762827133049,0.679,3591.8,3590.2,4.59921311]
[1762827133285,0.0041,3591.7,3590.6,2.78502523]
[1762827133456,0.0041,3591.7,3590.7,2.78489819]
[1762827133661,0.0041,3591.7,3590.6,2.78503494]
[1762827133881,0.39671423,3591.6,3590.7,2.78496744]
[1762827134084,1.263812,3591.7,3590.2,0.4628]
[1762827134402,0.5041,3591.6,3590.6,2.78504761]
[1762827134567,0.0041,3591.6,3590.7,2.78495733]
[1762827134877,1.938712,3591.8,3590.4,2.78519385]
[1762827134878,0.6821,3591.5,3590.4,2.78519385]
[1762827135080,0.6821,3591.5,3590.1,0.1807]
[1762827135254,0.678,3591.4,3590.1,0.1807]
[1762827135455,1.259712,3591.7,3590.1,0.1807]
[1762827135456,1.259712,3591.7,3590.5,2.78507296]
[1762827135781,1.15537507,3591.6,3590.1,0.6435]
[1762827135969,0.678,3591.5,3590.5,2.78505357]
[1762827136489,0.5,3591.2,3590.1,0.1807]
[1762827136646,1.263812,3591.4,3589.7,0.4628]
[1762827136647,0.5041,3591.4,3589.7,0.4628]
[1762827136847,0.5041,3591.4,3589.3,1.259712]
[1762827136848,4.54601711,3591.3,3589.3,0.4628]
[1762827137053,4.54601711,3591.3,3589.5,2.78590332]
[1762827137054,1.178,3591.2,3589.5,2.78590332]
[1762827137286,0.53185131,3591.1,3590.3,2.78525795]
[1762827137453,1.20985131,3591.1,3590.4,2.7851978]
[1762827137663,0.678,3591.1,3590.4,2.7851978]
[1762827137995,0.678,3591.1,3590.1,0.1807]
[1762827138502,0.0041,3591.7,3590.2,0.4628]
[1762827138703,0.678,3591.1,3591.0,2.78473049]
[1762827138865,0.0041,3591.7,3591.1,2.78461879]
[1762827139186,0.678,3591.6,3591.1,2.78461879]
[1762827139360,0.0041,3591.7,3590.8,2.78488445]
[1762827139704,0.678,3591.5,3590.4,0.4628]
[1762827139864,0.678,3591.5,3590.8,2.78483808]
[1762827140062,0.678,3591.4,3590.1,0.1807]
[1762827140251,0.678,3591.4,3590.8,2.78486723]
[1762827140585,0.0041,3591.5,3590.1,0.1807]
[1762827140586,0.0041,3591.5,3590.1,0.6435]
[1762827140818,0.54002251,3591.7,3590.3,3.19078656]
[1762827141022,1.259712,3592.3,3590.3,3.19078656]
[1762827141023,0.678,3591.6,3590.4,0.02785204]
[1762827141321,0.678,3591.5,3591.4,2.78437756]
[1762827141639,0.678,3591.7,3590.6,0.405504]
[1762827141789,0.73401484,3592.4,3591.3,0.1807]
[1762827142132,0.73401484,3592.4,3590.7,0.4628]
[1762827142133,7.0221,3592.3,3590.7,0.4628]
[1762827142333,2.03491348,3592.2,3591.5,2.78429602]
[1762827142533,2.71291348,3592.2,3591.6,2.78425853]
[1762827142733,2.03491348,3592.2,3591.0,3.24749917]
[1762827143019,2.03491348,3592.2,3591.8,2.78405792]
[1762827143020,0.77520148,3592.2,3591.8,2.78405792]
[1762827143181,1.38952015,3592.1,3591.9,2.78404063]
[1762827143386,1.38952015,3592.1,3590.6,0.4628]
[1762827143387,0.0041,3592.0,3590.6,0.4628]
[1762827143586,0.0041,3591.7,3590.6,0.4628]
[1762827143809,1.39362015,3592.1,3591.6,2.7842742]
[1762827144018,1.39362015,3592.1,3590.6,0.4628]
[1762827144019,0.71152015,3592.1,3590.6,0.4628]
[1762827144194,0.83112322,3592.0,3591.8,2.78410653]
[1762827144396,0.83112322,3592.0,3591.9,2.78404187]
[1762827145220,0.83112322,3592.0,3591.4,2.78438461]
[1762827145221,1.937712,3592.2,3592.0,2.78395356]
[1762827145424,1.937712,3592.2,3591.6,0.4772]
[1762827145643,1.259712,3592.2,3591.2,0.405504]
[1762827145805,0.678,3592.1,3591.1,0.4772]
[1762827146134,0.678,3592.1,3590.7,2.78494057]
[1762827146135,0.6821,3592.1,3590.7,0.4772]
[1762827146426,0.8281812,3592.0,3591.3,2.78445245]
[1762827146788,0.8281812,3592.0,3591.1,2.78463858]
[1762827147022,0.8281812,3592.0,3591.3,2.7844545]
[1762827147220,0.8281812,3592.0,3591.2,2.7845782]
[1762827147435,0.0041,3591.9,3591.0,2.78470458]
[1762827147634,1.32464063,3591.8,3591.0,2.78470458]
[1762827147802,1.32464063,3591.8,3590.7,2.78496134]
[1762827147803,1.32464063,3591.8,3591.2,2.78453248]
[1762827148132,0.0041,3591.7,3590.4,2.78520499]
[1762827148353,0.0041,3591.7,3591.0,2.78473918]
[1762827148354,1.263812,3591.7,3591.0,2.78473918]
[1762827148555,1.263812,3591.7,3591.1,2.78465891]
[1762827148767,7.66464063,3591.8,3590.5,0.4772]
[1762827148985,0.678,3591.6,3590.6,0.405504]
[1762827149117,0.678,3591.6,3591.0,2.78473542]
[1762827149448,0.678,3591.6,3591.3,2.78449723]
[1762827149748,6.34,3591.8,3590.3,1.259712]
[1762827149749,6.34,3591.8,3591.7,2.78419689]
[1762827149949,0.678,3591.8,3591.7,2.78419689]
[1762827150317,1.259712,3592.3,3591.9,2.78401415]
[1762827150516,1.259712,3592.3,3591.7,2.78419689]
[1762827150517,1.21802251,3592.2,3591.7,2.78419689]
[1762827150762,0.0041,3591.8,3590.6,0.405504]
[1762827151063,0.0041,3591.3,3590.1,0.6599]
[1762827151218,0.678,3591.2,3590.6,2.78501501]
[1762827151415,0.678,3591.2,3590.7,2.78490796]
[1762827151838,0.0041,3590.8,3590.5,2.78506506]
[1762827152037,0.0041,3590.8,3590.1,0.6599]
[1762827152038,0.678,3590.7,3590.1,0.002]
[1762827152239,0.678,3590.7,3590.2,2.78536014]
[1762827152439,0.678,3590.7,3590.2,2.78529874]
[1762827152626,0.678,3590.7,3590.1,0.002]
[1762827152836,1.263812,3591.1,3590.1,0.002]
[1762827152837,1.263812,3591.1,3590.6,2.78498959]
[1762827153019,1.21802251,3591.0,3590.1,0.1885]
[1762827153218,1.21802251,3591.0,3590.9,2.78481717]
[1762827153219,0.54002251,3591.0,3590.9,2.78481717]
[1762827153560,0.678,3591.0,3590.9,2.78481717]
[1762827153854,0.0041,3592.0,3591.0,2.78473962]
[1762827153855,0.678,3591.1,3591.0,2.78473962]
[1762827154057,1.99372684,3592.0,3590.6,0.4772]
[1762827154058,0.72991484,3592.0,3590.6,0.4772]
[1762827154243,1.259712,3592.0,3591.4,2.78437616]
[1762827154562,1.27202476,3591.9,3591.0,0.4559]
[1762827154750,1.27202476,3591.9,3591.4,2.78435912]
[1762827154945,1.27202476,3591.9,3591.5,2.78430695]
[1762827155145,0.678,3591.9,3591.5,2.78429285]
[1762827155752,0.72991484,3592.3,3591.8,0.4559]
[1762827155952,0.678,3592.2,3591.0,2.78473962]
[1762827156161,0.678,3592.2,3591.5,2.78434673]
[1762827156342,0.0041,3592.1,3590.9,0.4772]
[1762827156550,0.680814,3592.0,3590.9,0.4772]
[1762827157283,0.0041,3591.0,3590.1,0.1885]
[1762827157481,0.678,3590.9,3590.8,2.78488973]
[1762827157868,7.06991484,3591.8,3591.0,2.7847194]
[1762827158058,0.678,3591.7,3590.7,0.4772]
[1762827158258,0.678,3591.6,3591.0,2.78471846]
[1762827158472,0.678,3591.6,3590.9,2.7847979]
[1762827159038,0.678,3591.6,3590.7,2.78496048]
[1762827159271,0.678,3591.6,3590.8,2.78486542]
[1762827159500,0.678,3591.5,3590.8,2.78486542]
[1762827159658,0.39146408,3591.4,3590.3,0.4772]
[1762827159860,0.39146408,3591.4,3590.8,2.78481805]
[1762827160037,0.39146408,3591.4,3590.9,2.78479839]
[1762827160241,0.678,3591.3,3590.8,2.78481967]
[1762827160441,0.39146408,3591.4,3590.7,2.78490432]
[1762827160641,0.84311761,3591.3,3590.7,2.78490432]
[1762827160841,0.84311761,3591.3,3590.3,0.4772]
[1762827161073,0.84311761,3591.3,3590.8,2.7848861]
[1762827161342,0.84311761,3591.3,3590.6,2.78502678]
[1762827161573,0.84311761,3591.3,3590.1,0.1885]
[1762827161771,0.19685965,3591.2,3590.1,0.1885]
[1762827161994,1.259712,3591.1,3590.1,0.002]
[1762827162172,1.263812,3591.1,3590.1,2.7874339]
[1762827162375,0.0041,3591.0,3590.1,0.002]
[1762827162540,4.13641311,3590.8,3590.1,0.002]
[1762827162747,2.35176331,3590.7,3590.1,0.002]
[1762827163101,0.678,3590.6,3590.1,0.002]
[1762827163315,0.41405131,3590.7,3590.6,2.78504985]
[1762827163514,0.678,3590.8,3590.5,2.78505601]
[1762827163685,0.678,3590.8,3590.5,2.78512706]
[1762827164073,0.678,3590.8,3590.3,2.7852811]
[1762827164074,0.678,3590.8,3590.4,2.78518555]
[1762827164300,0.678,3590.8,3590.1,0.1885]
[1762827164301,0.678,3590.8,3590.1,0.002]
[1762827164478,0.678,3590.8,3590.1,0.6657]
[1762827164678,0.678,3590.8,3590.5,2.7851252]
[1762827165597,0.678,3590.8,3590.7,2.78497228]
[1762827165801,0.678,3590.8,3590.1,0.6657]
[1762827166106,0.678,3590.7,3590.6,2.78504985]
[1762827166281,0.678,3590.7,3590.2,0.4772]
[1762827166477,0.678,3590.7,3590.2,3.26255027]
[1762827166719,0.678,3590.7,3590.2,0.4772]
[1762827166921,0.678,3590.7,3590.6,2.78504985]
[1762827167587,0.678,3590.7,3590.6,3.24094985]
[1762827168016,0.678,3590.7,3590.6,2.78504985]
[1762827168922,0.678,3590.7,3590.4,2.78519532]
[1762827169226,0.678,3590.7,3590.6,2.78504985]
[1762827169927,0.678,3590.7,3590.1,0.1885]
[1762827170275,0.678,3590.7,3590.3,2.78523902]
[1762827170518,0.678,3590.7,3590.1,0.1885]
[1762827170808,0.678,3590.7,3590.4,2.78519515]
[1762827171013,0.678,3590.7,3590.5,2.78512373]
[1762827171323,0.677,3591.0,3590.6,0.4559]
[1762827171496,0.72991484,3591.7,3590.6,0.4559]
[1762827171497,0.73401484,3591.7,3591.0,2.78469635]
[1762827171691,0.97373602,3591.6,3591.0,2.78469635]
[1762827171881,0.0041,3591.1,3590.2,0.4772]
[1762827172082,0.0041,3590.9,3590.2,0.4772]
[1762827172316,0.0041,3590.9,3590.7,2.78490918]
[1762827172317,0.6811,3590.9,3590.7,2.78490918]
[1762827172482,0.6811,3590.9,3590.2,0.4772]
[1762827172910,0.6811,3590.9,3590.8,2.78489473]
[1762827173393,1.02665086,3591.6,3590.8,0.4559]
[1762827173594,0.72991484,3591.8,3591.3,2.78449147]
[1762827173784,0.677,3591.7,3590.9,0.4772]
[1762827173979,0.72991484,3591.8,3591.0,2.78473962]
[1762827174181,0.677,3591.7,3590.9,3.26201164]
[1762827174416,0.677,3591.7,3591.6,2.78427441]
[1762827174630,0.677,3591.7,3591.4,2.78441244]
[1762827174631,0.677,3591.7,3591.4,2.78441874]
[1762827174932,0.677,3591.7,3591.2,2.78456514]
[1762827175083,0.677,3591.7,3591.5,2.78434591]
[1762827175282,0.677,3591.7,3591.4,2.78440534]
[1762827175528,0.677,3591.7,3590.2,3.19086414]
[1762827175529,0.677,3591.7,3590.4,0.405504]
[1762827175688,0.677,3591.8,3591.2,0.4669]
[1762827175883,0.677,3591.8,3591.7,2.78419575]
[1762827176083,0.677,3591.8,3591.1,2.78463482]
[1762827176296,0.677,3591.8,3591.5,2.78434689]
[1762827176523,0.677,3591.8,3591.2,2.7845495]
[1762827176726,0.677,3591.8,3590.9,0.4669]
[1762827176892,0.81769148,3591.8,3591.5,2.78429919]
[1762827177086,0.677,3591.8,3591.5,2.78432964]
[1762827177286,1.98962684,3592.2,3591.5,2.78432964]
[1762827177492,1.98962684,3592.2,3591.0,0.4669]
[1762827177493,8.32962684,3592.2,3591.4,2.78437131]
[1762827177693,1.40691484,3592.1,3591.2,2.78458453]
[1762827177889,1.40691484,3592.1,3591.0,0.4669]
[1762827178090,1.364404,3592.0,3591.1,2.78466208]
[1762827178371,1.364404,3592.0,3591.6,2.78420826]
[1762827178372,0.677,3591.9,3591.6,2.78420826]
[1762827178736,0.677,3591.9,3591.0,0.4669]
[1762827178942,0.677,3591.9,3591.3,2.78443097]
[1762827179172,0.677,3591.9,3591.1,2.78466208]
[1762827179357,0.40310308,3591.8,3591.4,2.78442507]
[1762827180365,0.40310308,3591.8,3591.4,2.78437135]
[1762827181159,0.40310308,3591.8,3590.7,3.25182683]
[1762827181442,0.678,3591.9,3590.7,3.25182683]
[1762827181443,0.001,3591.9,3591.7,0.4712]
[1762827181748,0.001,3591.9,3591.6,2.78426156]
[1762827181749,0.677,3591.8,3591.6,2.78426156]
[1762827181977,0.677,3591.8,3591.6,2.78420518]
[1762827182195,0.677,3591.8,3591.7,2.78419689]
[1762827182814,0.677,3591.8,3590.5,2.78508372]
[1762827182815,0.6811,3591.8,3590.5,2.78508372]
[1762827183115,0.6811,3591.8,3590.8,0.4669]
[1762827183266,0.6811,3591.8,3591.4,2.78436444]
[1762827183467,0.6811,3591.8,3591.2,2.7845092]
[1762827183716,0.6811,3591.8,3591.3,2.78444762]
[1762827184012,0.6811,3591.8,3591.4,2.78440697]
[1762827184317,0.001,3591.9,3591.8,2.78411938]
[1762827184608,0.001,3591.9,3591.8,3.25531938]
[1762827185114,0.001,3591.9,3591.8,2.78411938]
[1762827185614,0.0051,3591.9,3591.0,0.4669]
[1762827185760,0.0041,3591.8,3591.0,0.4669]
[1762827185963,0.677,3591.7,3591.0,0.4669]
[1762827186196,0.677,3591.7,3591.5,2.78429153]
[1762827186360,0.677,3591.7,3591.4,2.78440073]
[1762827186562,0.677,3591.7,3591.2,2.78453143]
[1762827186776,0.677,3591.7,3591.4,2.78437503]
[1762827186987,0.677,3591.7,3591.4,2.78440273]
[1762827187370,0.677,3591.7,3590.8,0.4669]
[1762827187572,0.677,3591.7,3591.3,2.78448416]
[1762827188094,0.677,3591.6,3591.4,2.78442369]
[1762827188500,0.0041,3591.5,3589.6,3.53554385]
[1762827188662,0.0041,3591.3,3590.8,2.78488811]
[1762827188867,0.0041,3591.3,3591.0,2.78467505]
[1762827189501,0.0041,3591.3,3590.8,2.78488809]
[1762827189723,0.0041,3591.3,3591.0,2.78473951]
[1762827189886,0.677,3591.2,3591.1,2.78466208]
[1762827190083,0.001,3591.9,3590.5,2.78512741]
[1762827190284,0.6811,3591.8,3590.2,0.4669]
[1762827190507,1.1811,3591.8,3590.2,0.4669]
[1762827190716,1.260712,3591.9,3590.2,0.4669]
[1762827190717,0.31738617,3591.7,3590.2,0.4669]
[1762827191017,0.31738617,3591.7,3591.6,2.78427441]
[1762827191018,0.677,3591.7,3591.6,2.78427441]
[1762827191522,0.001,3591.9,3591.6,2.78427441]
[1762827191523,0.001,3591.9,3591.8,2.78411938]
[1762827191811,0.678,3591.9,3591.8,2.78411938]
[1762827192021,0.001,3591.9,3591.8,3.72221938]
[1762827192180,0.001,3591.9,3591.2,0.4669]
[1762827192181,0.0051,3591.9,3591.2,0.4669]
[1762827192381,0.677,3591.8,3590.8,0.4669]
[1762827192580,0.677,3591.8,3591.5,2.78434973]
[1762827192817,0.677,3591.8,3591.5,2.78433817]
[1762827193188,0.677,3591.8,3590.9,0.4669]
[1762827193493,0.677,3591.8,3591.6,2.78422092]
[1762827193695,0.677,3591.8,3590.4,7.38107942]
[1762827193917,0.677,3591.7,3590.6,0.4669]
[1762827194117,0.677,3591.7,3591.6,2.7842159]
[1762827194685,0.677,3591.7,3591.4,2.78442947]
[1762827194913,0.677,3591.7,3590.3,2.78528256]
[1762827195136,0.677,3591.7,3590.4,0.4669]
[1762827195294,0.677,3591.7,3591.6,2.78427441]
[1762827195914,0.001,3591.9,3591.5,2.78429833]
[1762827196136,0.001,3591.9,3591.8,3.25531938]
[1762827196289,0.001,3591.9,3591.8,3.72221938]
[1762827196682,0.001,3591.9,3591.8,3.25531938]
[1762827196883,0.001,3591.9,3591.3,0.4669]
[1762827197324,0.001,3591.9,3591.8,2.78411938]
[1762827197834,0.001,3591.9,3591.8,3.72221938]
[1762827198132,0.001,3591.9,3591.8,0.4712]
[1762827198293,0.001,3591.9,3591.8,3.25531938]
[1762827199994,0.001,3591.9,3591.8,2.78411938]
[1762827200636,0.001,3591.9,3591.8,3.25531938]
[1762827201514,0.001,3591.9,3591.8,3.72221938]
[1762827202417,0.001,3591.9,3591.8,3.25531938]
[1762827202604,0.001,3591.9,3591.8,2.78411938]
[1762827203731,0.001,3591.9,3591.8,3.25531938]
[1762827203926,0.001,3591.9,3591.8,3.72221938]
[1762827204520,0.001,3591.9,3591.8,2.78411938]
[1762827205654,0.001,3591.9,3591.1,0.4899]
[1762827205655,0.001,3591.9,3591.7,2.78417411]
[1762827205805,0.001,3591.9,3591.1,0.4899]
[1762827206004,0.001,3591.9,3591.8,2.78411938]
[1762827206435,0.0051,3591.9,3591.8,2.78411938]
[1762827206817,0.001,3591.9,3591.8,2.78411938]
[1762827207236,0.001,3591.9,3591.8,3.27061938]
[1762827207418,0.0051,3591.9,3590.8,0.4899]
[1762827207618,0.001,3591.9,3591.8,2.78411938]
[1762827207832,0.677,3591.9,3591.8,2.78411938]
[1762827209038,0.001,3591.9,3591.8,2.78411938]
[1762827209337,0.001,3591.9,3591.8,3.27061938]
[1762827209748,0.001,3591.9,3591.8,0.4865]
[1762827209951,0.001,3591.9,3591.8,2.78411938]
[1762827210315,0.001,3591.9,3591.8,3.27061938]
[1762827210911,0.001,3591.9,3591.8,3.76051938]
[1762827211462,0.001,3591.9,3590.8,1.081504]
[1762827211622,0.001,3591.9,3591.8,2.78411938]
[1762827211818,0.001,3591.9,3591.7,2.78418495]
[1762827212018,0.001,3591.9,3591.8,2.78411938]
[1762827212237,0.001,3591.9,3590.9,0.4899]
[1762827212440,0.001,3591.9,3591.8,2.78411938]
[1762827212635,0.001,3591.9,3590.8,0.676]
[1762827212860,0.001,3591.9,3591.8,2.78411938]
[1762827213071,0.001,3591.9,3591.2,0.4899]
[1762827213259,0.001,3591.9,3591.8,2.78411938]
[1762827213671,0.001,3591.9,3591.8,3.76051938]
[1762827214052,0.001,3591.9,3591.8,2.78411938]
[1762827214581,0.0051,3591.9,3591.0,0.4899]
[1762827214893,0.001,3591.9,3591.8,3.27061938]
[1762827215057,0.001,3591.9,3591.8,3.76051938]
[1762827215539,0.001,3591.9,3591.8,2.78411938]
[1762827216166,0.001,3591.9,3591.3,0.4899]
[1762827216676,0.001,3591.9,3591.8,2.78411938]
[1762827217536,0.001,3591.9,3591.8,3.27061938]
[1762827217732,0.001,3591.9,3591.8,2.78411938]
[1762827218370,0.0051,3591.9,3591.8,2.78411938]
[1762827218678,0.0051,3591.9,3591.2,0.4899]
[1762827218867,0.0051,3591.9,3591.6,2.78427407]
[1762827219373,0.0051,3591.9,3591.7,2.78418244]
[1762827219981,0.0051,3591.9,3591.2,0.4899]
[1762827220279,0.001,3591.9,3591.2,0.4899]
[1762827220585,0.001,3591.9,3591.6,2.7842623]
[1762827220880,0.001,3591.9,3591.4,2.78441831]
[1762827221080,0.001,3591.9,3591.2,0.4899]
[1762827221459,0.001,3591.9,3591.8,2.78411938]
[1762827222576,0.001,3591.9,3590.3,0.74979227]
[1762827222577,0.0092,3591.9,3590.3,0.74979227]
[1762827222900,0.73614974,3591.6,3590.1,0.6784]
[1762827223087,1.35741665,3591.5,3590.6,2.78499075]
[1762827223274,0.675,3591.4,3590.2,0.4899]
[1762827223481,0.675,3591.4,3590.7,2.78491255]
[1762827223666,0.675,3591.4,3590.2,0.4899]
[1762827223667,0.6791,3591.4,3590.2,0.4899]
[1762827223998,0.675,3591.3,3590.2,0.4899]
[1762827224296,0.675,3591.3,3590.6,2.78502933]
[1762827224499,0.14070497,3591.2,3590.3,2.78527265]
[1762827224671,0.675,3591.3,3590.3,2.78527265]
[1762827224873,0.73204974,3591.5,3590.2,0.4899]
[1762827225092,0.675,3591.2,3590.2,0.4899]
[1762827225401,0.675,3591.2,3590.5,2.78505661]
[1762827226195,0.675,3591.2,3590.6,2.78504821]
[1762827226401,0.675,3591.2,3590.3,2.78527469]
[1762827226402,0.675,3591.2,3590.5,2.78511359]
[1762827226599,0.675,3591.2,3590.2,0.4899]
[1762827226773,0.675,3591.2,3590.4,2.7851775]
[1762827226976,0.6791,3591.2,3590.5,2.78511699]
[1762827227304,0.6791,3591.2,3590.1,0.1885]
[1762827227499,0.6791,3591.2,3590.5,2.78511776]
[1762827227802,0.675,3591.2,3590.4,0.4899]
[1762827227965,0.675,3591.2,3590.7,2.78494395]
[1762827228163,0.675,3591.2,3590.4,0.4899]
[1762827228364,0.675,3591.2,3590.6,2.78498845]
[1762827228597,0.675,3591.2,3590.3,2.7852274]
[1762827228814,0.6791,3591.2,3590.1,0.1885]
[1762827228965,0.73204974,3591.8,3591.1,0.4865]
[1762827229303,0.24224381,3591.8,3591.1,3.27114146]
[1762827229601,0.24224381,3591.8,3591.2,2.78453161]
[1762827229805,0.24224381,3591.8,3590.5,2.78510519]
[1762827229806,0.0041,3591.2,3590.2,0.4899]
[1762827230099,0.675,3591.1,3590.7,2.78489843]
[1762827230266,0.6791,3591.1,3590.1,2.97386406]
[1762827230468,0.6791,3591.1,3590.1,0.002]
[1762827230469,0.675,3591.1,3590.1,0.002]
[1762827230704,0.6791,3591.1,3590.1,0.2005]
[1762827231084,0.6791,3591.1,3590.2,2.78536014]
[1762827231464,0.6791,3591.1,3590.1,0.2005]
[1762827231465,0.47233307,3591.0,3590.1,0.2005]
[1762827231663,0.675,3590.9,3590.1,0.2005]
[1762827231898,0.675,3590.9,3590.2,2.78536014]
[1762827232202,0.675,3590.9,3590.1,2.98591121]
[1762827232376,0.675,3590.9,3590.2,2.7853504]
[1762827232700,0.675,3590.9,3590.1,0.002]
[1762827232903,0.3459672,3590.8,3590.1,0.002]
[1762827233207,1.938812,3590.9,3590.1,0.002]
[1762827233366,5.22366076,3590.9,3590.1,0.002]
[1762827233565,1.938812,3590.9,3590.1,0.002]
[1762827233804,0.6791,3590.9,3590.1,0.002]
[1762827233988,0.2438812,3590.8,3590.1,2.78742544]
[1762827234195,0.2438812,3590.8,3590.1,0.2005]
[1762827234505,0.73614974,3591.2,3590.1,0.2005]
[1762827234506,0.675,3590.7,3590.3,2.7852596]
[1762827234808,0.73614974,3591.2,3590.2,2.7853556]
[1762827234981,0.676,3591.1,3590.5,2.78511381]
[1762827235166,0.675,3591.0,3590.1,0.6904]
[1762827235485,0.675,3591.0,3590.5,2.78507161]
[1762827236206,0.001,3591.1,3590.5,2.78507161]
[1762827236387,0.675,3591.0,3590.5,2.78512086]
[1762827236577,0.675,3591.0,3590.4,2.78519219]
[1762827236901,0.675,3591.0,3590.1,2.78740218]
[1762827237072,0.47203112,3590.9,3590.1,2.78740218]
[1762827237575,0.47203112,3590.9,3590.1,0.002]
[1762827237576,6.81613112,3590.9,3590.1,0.002]
[1762827239510,0.675,3590.8,3590.1,0.1941]
[1762827239690,0.675,3590.8,3590.2,2.78536014]
[1762827239884,0.675,3590.8,3590.1,3.43061681]
[1762827240078,0.675,3590.8,3590.1,2.97951681]
[1762827240285,0.675,3590.8,3590.1,0.1941]
[1762827240485,1.8286519,3590.8,3590.1,0.1941]
[1762827240684,1.1536519,3590.8,3590.1,0.1941]
[1762827240881,0.675,3590.7,3590.1,0.1941]
[1762827241420,0.675,3590.7,3590.1,2.97949903]
[1762827241620,0.675,3590.7,3590.1,0.002]
[1762827241785,0.8640683,3590.6,3590.1,0.002]
[1762827242203,0.0041,3590.2,3590.1,0.002]
[1762827242403,4.72417214,3590.2,3590.1,0.002]
[1762827242748,6.68832238,3590.2,3590.1,0.002]
[1762827243042,0.6791,3590.2,3590.1,0.002]
[1762827244098,2.1326932,3590.2,3590.1,0.002]
[1762827244413,0.1979812,3590.2,3590.1,0.002]
[1762827244728,0.8688812,3590.2,3590.1,0.002]
[1762827245033,0.6791,3590.2,3590.1,0.002]
[1762827245187,0.6832,3590.2,3590.1,0.002]
[1762827245391,0.6791,3590.2,3590.1,0.002]
[1762827245988,0.675,3590.2,3590.1,0.002]
[1762827246593,0.6791,3590.2,3590.1,0.002]
[1762827246818,1.21088352,3590.2,3590.1,0.002]
[1762827247127,1.20678352,3590.2,3590.1,0.002]
[1762827247335,0.675,3590.2,3590.1,0.002]
[1762827247917,0.675,3590.2,3590.1,0.4622]
[1762827248601,0.6832,3590.2,3590.1,0.002]
[1762827248795,1.28275472,3590.2,3590.1,0.002]
[1762827248996,0.6791,3590.2,3590.1,0.002]
[1762827250141,0.0082,3590.2,3590.1,0.002]
[1762827250435,0.6832,3590.2,3590.1,0.002]
[1762827250637,3.46856014,3590.2,3590.1,0.002]
[1762827250804,2.28976801,3590.2,3590.1,0.002]
[1762827251137,5.07512815,3590.2,3590.1,0.002]
[1762827251310,2.28976801,3590.2,3590.1,0.002]
[1762827251519,5.57512815,3590.2,3590.1,0.002]
[1762827251714,9.20976332,3590.2,3590.1,0.002]
[1762827252044,0.34685601,3590.2,3590.1,0.002]
[1762827252251,0.675,3590.2,3590.1,0.002]
[1762827253210,0.676,3590.2,3590.1,0.002]
[1762827254046,0.001,3590.2,3590.1,0.6543]
[1762827254222,0.001,3590.2,3590.1,3.89083773]